bitfinex-derivatives/quotes_BTCF0:USTF0_20250609
["timestamp","ask_amount","ask_price","bid_price","bid_amount"]
[1749480986917,0.61395875,107550.0,107540.0,1.04690033]
[1749480987124,0.61387875,107550.0,107540.0,1.04690033]
[1749480987323,0.61387875,107550.0,107540.0,1.1398933]
[1749480987523,0.79975115,107550.0,107540.0,1.1398933]
[1749480987725,0.07425231,107550.0,107540.0,1.2328773]
[1749480987923,0.9559355,107570.0,107560.0,0.1858551]
[1749480988225,0.9559355,107570.0,107560.0,1.16680789]
[1749480988226,1.4885355,107570.0,107560.0,1.16680789]
[1749480988528,1.4885355,107570.0,107560.0,1.1156605]
[1749480988930,1.48864944,107570.0,107560.0,1.1156605]
[1749480989120,1.48852944,107570.0,107560.0,1.1156605]
[1749480989522,1.49252944,107570.0,107560.0,1.1166605]
[1749480989723,1.44606694,107570.0,107560.0,1.1166605]
[1749480989924,1.44906694,107570.0,107560.0,1.1166605]
[1749480990230,1.44506694,107570.0,107560.0,1.1156605]
[1749480990435,1.44706694,107570.0,107560.0,1.1156605]
[1749480990922,1.40060474,107570.0,107560.0,1.1156605]
[1749480991126,1.47543448,107570.0,107560.0,1.1156605]
[1749480991631,1.51435724,107570.0,107560.0,1.1156605]
[1749480992025,0.98187724,107570.0,107560.0,1.1156605]
[1749480992232,1.51407724,107570.0,107560.0,1.1156605]
[1749480992531,1.32822644,107570.0,107560.0,1.1156605]
[1749480992728,1.32822644,107570.0,107560.0,1.00042214]
[1749480993430,1.51406424,107570.0,107560.0,1.00042214]
[1749480994135,1.47506424,107570.0,107560.0,0.63962214]
[1749480996034,1.47506424,107570.0,107560.0,0.64367874]
[1749480996823,1.66536044,107570.0,107560.0,0.64367874]
[1749480997022,2.02616044,107570.0,107560.0,0.09702364]
[1749480997233,2.02777836,107570.0,107560.0,0.09296704]
[1749480997630,2.06951217,107570.0,107560.0,0.09296704]
[1749480998033,2.02777836,107570.0,107560.0,0.09296704]
[1749480998233,2.02777836,107570.0,107560.0,0.09702364]
[1749481001239,1.98877836,107570.0,107560.0,0.09702364]
[1749481001738,1.09577836,107570.0,107560.0,0.28287864]
[1749481001938,1.09577836,107570.0,107560.0,0.64367864]
[1749481001939,1.43544216,107570.0,107560.0,0.64367864]
[1749481002237,1.43544216,107570.0,107560.0,0.28287864]
[1749481002437,1.43544216,107570.0,107560.0,0.64367864]
[1749481002630,1.43544216,107570.0,107560.0,0.84367864]
[1749481007934,0.90548216,107570.0,107560.0,1.03397484]
[1749481008133,1.43508216,107570.0,107560.0,1.03397484]
[1749481008439,1.43508216,107570.0,107560.0,1.11607484]
[1749481008440,1.39608216,107570.0,107560.0,1.11607484]
[1749481009041,1.39608216,107570.0,107560.0,0.84367874]
[1749481009244,1.39608216,107570.0,107560.0,0.65782364]
[1749481009541,0.86648216,107570.0,107560.0,0.84367874]
[1749481009734,1.39608216,107570.0,107560.0,0.65782364]
[1749481010242,1.58637836,107570.0,107560.0,0.29296704]
[1749481010444,1.94717836,107570.0,107560.0,0.29296704]
[1749481010635,1.58637836,107570.0,107560.0,0.29296704]
[1749481011035,1.94717836,107570.0,107560.0,0.29296704]
[1749481011234,1.94717836,107570.0,107560.0,0.29702364]
[1749481012045,0.86648216,107570.0,107560.0,0.29702364]
[1749481012346,1.39608216,107570.0,107560.0,0.65782364]
[1749481012544,1.39608216,107570.0,107560.0,0.29702364]
[1749481013337,0.86648216,107570.0,107560.0,0.29702364]
[1749481013645,1.39608216,107570.0,107560.0,0.29702364]
[1749481013837,1.39608216,107570.0,107560.0,0.48287874]
[1749481014041,1.39608216,107570.0,107560.0,0.29702364]
[1749481015443,1.35708216,107570.0,107560.0,0.29702364]
[1749481017946,0.82748216,107570.0,107560.0,0.29702364]
[1749481018148,1.35708216,107570.0,107560.0,0.29702364]
[1749481018550,1.35708216,107570.0,107560.0,0.48287874]
[1749481018847,1.35708216,107570.0,107560.0,0.29702364]
[1749481021349,0.82748216,107570.0,107560.0,0.48287864]
[1749481021753,1.35704216,107570.0,107560.0,0.65507864]
[1749481022251,1.35704216,107570.0,107560.0,0.46922364]
[1749481022446,1.35704216,107570.0,107560.0,0.38192364]
[1749481022646,1.35704216,107570.0,107560.0,0.29702364]
[1749481023750,1.31804216,107570.0,107560.0,0.29702364]
[1749481024649,1.35987751,107570.0,107560.0,0.412262]
[1749481025043,1.31804216,107570.0,107560.0,0.412262]
[1749481025544,1.35987825,107570.0,107560.0,0.412262]
[1749481026052,1.35987825,107570.0,107560.0,0.5981171]
[1749481026346,1.35987825,107570.0,107560.0,0.412262]
[1749481026558,1.35987825,107570.0,107560.0,0.5981171]
[1749481026856,1.35987825,107570.0,107560.0,0.6873171]
[1749481027154,1.31804216,107570.0,107560.0,0.6873171]
[1749481027348,1.35989097,107570.0,107560.0,0.6873171]
[1749481027945,1.35989097,107570.0,107560.0,0.501462]
[1749481028556,1.35989097,107570.0,107560.0,0.412262]
[1749481028751,1.55018717,107570.0,107560.0,0.412262]
[1749481029052,1.35989097,107570.0,107560.0,0.412262]
[1749481030756,1.32089097,107570.0,107560.0,0.412262]
[1749481033446,1.87198717,107570.0,107560.0,0.412262]
[1749481033652,1.9155075,107570.0,107560.0,0.29702364]
[1749481035449,1.51118717,107570.0,107560.0,0.29702364]
[1749481035655,1.51118717,107570.0,107560.0,0.65782364]
[1749481035656,1.32045097,107570.0,107560.0,0.65782364]
[1749481035959,1.32045097,107570.0,107560.0,0.773062]
[1749481037759,1.28145097,107570.0,107560.0,0.412262]
[1749481038058,1.28145097,107570.0,107560.0,0.29702364]
[1749481038557,0.66573097,107570.0,107560.0,0.48287874]
[1749481038750,1.19485097,107570.0,107560.0,0.48287874]
[1749481038954,1.19485097,107570.0,107560.0,0.57147874]
[1749481039354,1.19485097,107570.0,107560.0,0.65507874]
[1749481039565,1.19485097,107570.0,107560.0,0.46922364]
[1749481039861,1.19485097,107570.0,107560.0,0.38562364]
[1749481041450,1.04629097,107570.0,107560.0,0.38562364]
[1749481041858,1.04629097,107570.0,107560.0,0.74642364]
[1749481042050,1.04629097,107570.0,107560.0,0.861662]
[1749481042254,1.04629097,107570.0,107560.0,0.38562364]
[1749481042660,1.04629097,107570.0,107560.0,0.500862]
[1749481042854,1.04629097,107570.0,107560.0,0.38562364]
[1749481043255,1.59738717,107570.0,107560.0,0.29702364]
[1749481043761,1.23658717,107570.0,107560.0,0.29702364]
[1749481044862,1.19758717,107570.0,107560.0,0.29702364]
[1749481045163,1.55838717,107570.0,107560.0,0.29702364]
[1749481045858,1.55838717,107570.0,107560.0,0.29296704]
[1749481046856,1.55838717,107570.0,107560.0,0.29702364]
[1749481048658,1.6019075,107570.0,107560.0,0.29702364]
[1749481052069,1.5629075,107570.0,107560.0,0.29702364]
[1749481053965,1.3726113,107570.0,107560.0,0.29702364]
[1749481054268,1.32909097,107570.0,107560.0,0.29702364]
[1749481054766,1.32909097,107570.0,107560.0,0.65782364]
[1749481054767,0.43917097,107570.0,107560.0,0.65782364]
[1749481054969,0.26293317,107570.0,107560.0,1.03397444]
[1749481055163,0.83540166,107570.0,107560.0,1.4132128]
[1749481055360,0.83540166,107570.0,107560.0,1.037062]
[1749481055361,0.30632166,107570.0,107560.0,1.037062]
[1749481055560,1.06746692,107570.0,107560.0,0.38682364]
[1749481055871,1.23916692,107570.0,107560.0,0.38682364]
[1749481056071,1.04887072,107570.0,107560.0,0.38682364]
[1749481056271,1.04887072,107570.0,107560.0,0.74762364]
[1749481057666,1.04887072,107570.0,107560.0,0.38682364]
[1749481057866,1.04887072,107570.0,107560.0,0.74762364]
[1749481058773,1.04887072,107570.0,107560.0,0.38682364]
[1749481058975,1.00987072,107570.0,107560.0,0.38682364]
[1749481060178,1.00994906,107570.0,107560.0,0.38682364]
[1749481064275,1.00994906,107570.0,107560.0,0.74762364]
[1749481064774,0.92784906,107570.0,107560.0,0.93347834]
[1749481064975,0.39876916,107570.0,107560.0,1.02347834]
[1749481065180,0.65225176,107570.0,107560.0,1.21377454]
[1749481065568,0.83808916,107570.0,107560.0,1.21377454]
[1749481065973,0.83808916,107570.0,107560.0,1.02347834]
[1749481066273,0.79908916,107570.0,107560.0,1.02347834]
[1749481066876,0.27016916,107570.0,107560.0,1.02347834]
[1749481067176,0.79908916,107570.0,107560.0,1.02347834]
[1749481068086,0.7573201,107570.0,107560.0,1.1387167]
[1749481068976,0.2284001,107570.0,107560.0,1.1387167]
[1749481069185,0.7573201,107570.0,107560.0,1.1387167]
[1749481069684,0.79901808,107570.0,107560.0,1.1387167]
[1749481069885,0.7573201,107570.0,107560.0,1.1387167]
[1749481070586,0.7573201,107570.0,107560.0,0.952862]
[1749481070785,0.7573201,107570.0,107560.0,1.1387168]
[1749481071486,0.7794963,107570.0,107560.0,0.592062]
[1749481071678,1.28251435,107570.0,107560.0,0.29702364]
[1749481071878,0.185872,107550.0,107540.0,0.18853836]
[1749481072096,0.9050482,107550.0,107540.0,0.18853836]
[1749481072299,1.0787482,107550.0,107540.0,0.19259496]
[1749481072501,0.888452,107550.0,107540.0,0.17032364]
[1749481073204,0.849452,107550.0,107540.0,0.17332364]
[1749481073387,0.849452,107550.0,107540.0,0.16926704]
[1749481073592,0.8018521,107550.0,107540.0,0.90625264]
[1749481073794,0.7147521,107550.0,107540.0,0.90625264]
[1749481074002,0.7147521,107550.0,107540.0,0.99195264]
[1749481074993,0.22843174,107550.0,107540.0,0.99195264]
[1749481075201,0.75735174,107550.0,107540.0,0.99195264]
[1749481075707,0.75735174,107550.0,107540.0,0.99095264]
[1749481077302,0.75735174,107550.0,107540.0,1.19095264]
[1749481080005,0.22843174,107550.0,107540.0,1.19095264]
[1749481080204,0.71831184,107550.0,107540.0,1.19095264]
[1749481082200,0.7147522,107550.0,107540.0,1.19095264]
[1749481084508,0.52888,107550.0,107540.0,1.19500924]
[1749481084705,0.7147522,107550.0,107540.0,1.19500924]
[1749481084899,0.52888,107550.0,107540.0,1.19500924]
[1749481085207,0.7147522,107550.0,107540.0,1.19500924]
[1749481085405,0.10052,107550.0,107540.0,1.19500924]
[1749481085605,0.7147522,107550.0,107540.0,1.19500924]
[1749481087507,0.6757522,107550.0,107540.0,1.19500924]
[1749481088006,0.6757522,107550.0,107540.0,0.91701304]
[1749481088206,0.9309522,107550.0,107540.0,0.91701304]
[1749481088904,0.9309522,107550.0,107540.0,1.10730924]
[1749481089299,0.9309522,107550.0,107540.0,0.73112364]
[1749481089609,0.9309522,107550.0,107540.0,0.84371314]
[1749481094114,0.9309522,107550.0,107540.0,1.03400934]
[1749481094411,0.8919522,107550.0,107540.0,1.03400934]
[1749481094906,0.8919522,107550.0,107540.0,0.84371314]
[1749481095612,0.8919522,107550.0,107540.0,0.65782364]
[1749481095812,0.8919522,107550.0,107540.0,0.84371314]
[1749481097613,0.6538884,107550.0,107540.0,0.29702364]
[1749481097814,1.4429684,107550.0,107540.0,0.29702364]
[1749481098915,0.9921684,107550.0,107540.0,0.29702364]
[1749481099216,0.78392,107550.0,107540.0,1.03400934]
[1749481099513,0.2552,107550.0,107540.0,1.03400934]
[1749481099712,0.2552,107550.0,107540.0,1.12200934]
[1749481099713,0.9697922,107550.0,107540.0,1.12200934]
[1749481101518,0.9307922,107550.0,107540.0,1.12200934]
[1749481101719,0.9307922,107550.0,107540.0,0.76120934]
[1749481101919,0.9307922,107550.0,107540.0,1.12200934]
[1749481102305,0.2717722,107550.0,107540.0,1.12200934]
[1749481102515,0.3691971,107560.0,107550.0,0.1858722]
[1749481102710,0.3691971,107560.0,107550.0,0.8226684]
[1749481102711,1.02826487,107560.0,107550.0,0.8226684]
[1749481103217,1.02826487,107560.0,107550.0,0.72535653]
[1749481104414,1.03026487,107560.0,107550.0,0.72535653]
[1749481104618,1.11776487,107560.0,107550.0,0.72535653]
[1749481104818,1.11976487,107560.0,107550.0,0.72535653]
[1749481106114,0.31228777,107560.0,107550.0,0.91565273]
[1749481106311,1.02682267,107560.0,107550.0,0.91565273]
[1749481107411,0.84692267,107560.0,107550.0,0.91565273]
[1749481107616,0.84692267,107560.0,107550.0,1.11565273]
[1749481108422,0.84492267,107560.0,107550.0,1.11565273]
[1749481108621,0.80592267,107560.0,107550.0,1.11565273]
[1749481109318,0.27724267,107560.0,107550.0,1.11565273]
[1749481109525,0.80588267,107560.0,107550.0,0.92535653]
[1749481109816,0.88878267,107560.0,107550.0,0.92535653]
[1749481110414,0.8464949,107560.0,107550.0,0.92535653]
[1749481112625,0.8464949,107560.0,107550.0,0.56455653]
[1749481112830,0.8464949,107560.0,107550.0,0.73948433]
[1749481113131,0.88880401,107560.0,107550.0,0.92535653]
[1749481113319,0.88880401,107560.0,107550.0,0.83965653]
[1749481114626,0.89080401,107560.0,107550.0,0.83965653]
[1749481115126,0.89280401,107560.0,107550.0,0.83965653]
[1749481115622,0.85380401,107560.0,107550.0,0.83965653]
[1749481115925,0.85380401,107560.0,107550.0,0.65784093]
[1749481116518,1.21460401,107560.0,107550.0,0.29704093]
[1749481116715,0.85380401,107560.0,107550.0,0.29704093]
[1749481116920,0.85380401,107560.0,107550.0,0.65784093]
[1749481117731,1.04410021,107560.0,107550.0,0.29704093]
[1749481117926,1.21460401,107560.0,107550.0,0.29704093]
[1749481122429,0.85380401,107560.0,107550.0,0.29704093]
[1749481122631,1.17560401,107560.0,107550.0,0.29704093]
[1749481125032,0.66438401,107560.0,107550.0,0.67320933]
[1749481125225,0.20326401,107560.0,107550.0,1.20920933]
[1749481125430,0.73166401,107560.0,107550.0,1.20920933]
[1749481125631,1.09246401,107560.0,107550.0,0.29704093]
[1749481125836,1.31075367,107560.0,107550.0,0.29704093]
[1749481126230,0.94995367,107560.0,107550.0,0.84371313]
[1749481126432,0.90646401,107560.0,107550.0,1.01191313]
[1749481127230,0.90646401,107560.0,107550.0,0.82604093]
[1749481127638,0.90643814,107560.0,107550.0,0.82604093]
[1749481128937,0.90643814,107560.0,107550.0,0.46524093]
[1749481129138,0.90643814,107560.0,107550.0,0.37964093]
[1749481129741,0.86743814,107560.0,107550.0,0.37964093]
[1749481130636,0.86743814,107560.0,107550.0,0.29704093]
[1749481134047,0.25123814,107560.0,107550.0,0.48291313]
[1749481134243,0.5324,107560.0,107550.0,1.03400933]
[1749481134540,0.718255,107560.0,107550.0,1.29360933]
[1749481134947,0.5324,107560.0,107550.0,1.29360933]
[1749481135134,0.718255,107560.0,107550.0,1.43802322]
[1749481135742,0.718255,107560.0,107550.0,1.29360933]
[1749481136654,0.716255,107560.0,107550.0,1.29360933]
[1749481136853,0.677255,107560.0,107550.0,1.29360933]
[1749481137657,0.677255,107560.0,107550.0,1.43802322]
[1749481137852,0.677255,107560.0,107550.0,1.24772702]
[1749481138051,0.677255,107560.0,107550.0,1.24772712]
[1749481138250,0.677255,107560.0,107550.0,1.10331323]
[1749481139154,0.679255,107560.0,107550.0,1.10331323]
[1749481139858,0.679255,107560.0,107550.0,1.10331313]
[1749481140157,0.680255,107560.0,107550.0,1.10331313]
[1749481140858,0.680255,107560.0,107550.0,1.29360933]
[1749481141256,0.72263132,107560.0,107550.0,1.29360933]
[1749481141457,0.72263132,107560.0,107550.0,1.10773713]
[1749481141658,0.72263132,107560.0,107550.0,1.29360933]
[1749481142558,0.72263132,107560.0,107550.0,1.10331313]
[1749481143160,0.72263132,107560.0,107550.0,1.29360933]
[1749481144059,0.68363132,107560.0,107550.0,1.29360933]
[1749481145259,0.68363132,107560.0,107550.0,1.10331313]
[1749481145658,0.641255,107560.0,107550.0,1.10331313]
[1749481145857,0.188855,107560.0,107550.0,1.29360933]
[1749481146156,0.717095,107560.0,107550.0,1.29360933]
[1749481146553,0.003,107560.0,107550.0,1.29360933]
[1749481146757,0.53124,107560.0,107550.0,1.29360933]
[1749481146959,0.53124,107560.0,107550.0,1.43802322]
[1749481147161,0.188855,107560.0,107550.0,1.43802322]
[1749481147355,0.23123685,107560.0,107550.0,1.06185482]
[1749481147558,0.75943685,107560.0,107550.0,0.38574093]
[1749481147757,1.02363685,107560.0,107550.0,0.38574093]
[1749481148154,1.02263685,107560.0,107550.0,0.38574093]
[1749481148355,1.38343685,107560.0,107550.0,0.29704093]
[1749481148660,1.57373305,107560.0,107550.0,0.29298433]
[1749481148862,1.5313512,107560.0,107550.0,0.29298433]
[1749481149262,1.5738018,107560.0,107550.0,0.29298433]
[1749481149464,1.5718018,107560.0,107550.0,0.29704093]
[1749481149659,1.5728018,107560.0,107550.0,0.29704093]
[1749481149965,1.3825056,107560.0,107550.0,0.29704093]
[1749481150265,1.0217056,107560.0,107550.0,0.84371313]
[1749481150467,1.0237056,107560.0,107550.0,0.84371313]
[1749481150965,0.981255,107560.0,107550.0,0.84371313]
[1749481151365,1.02371065,107560.0,107550.0,0.84371313]
[1749481152068,0.98471065,107560.0,107550.0,0.84371313]
[1749481158469,0.98471065,107560.0,107550.0,0.65784093]
[1749481158670,0.98471065,107560.0,107550.0,0.84371313]
[1749481159368,0.94571065,107560.0,107550.0,0.65784093]
[1749481159571,0.94571065,107560.0,107550.0,0.84371313]
[1749481163571,0.94571065,107560.0,107550.0,1.01561313]
[1749481163775,0.25351065,107560.0,107550.0,1.01561313]
[1749481164069,0.53096,107560.0,107550.0,1.28880933]
[1749481164373,0.7168149,107560.0,107550.0,1.28880933]
[1749481165065,0.7148149,107560.0,107550.0,1.28880933]
[1749481165974,0.001,107560.0,107550.0,1.28880933]
[1749481166169,0.7148149,107560.0,107550.0,1.28880933]
[1749481166375,0.6758149,107560.0,107550.0,1.28880933]
[1749481169075,0.6758149,107560.0,107550.0,1.43322322]
[1749481169274,0.6758149,107560.0,107550.0,1.28880933]
[1749481171277,0.7137349,107560.0,107550.0,1.28880933]
[1749481171478,0.7137349,107560.0,107550.0,1.43322322]
[1749481171972,0.7137349,107560.0,107550.0,1.64960933]
[1749481172980,0.22679348,107570.0,107560.0,0.185855]
[1749481173272,0.7527298,107570.0,107560.0,1.04857939]
[1749481173476,0.28799348,107570.0,107560.0,1.04857939]
[1749481173682,0.71567348,107570.0,107560.0,1.14155507]
[1749481173972,7.834e-05,107570.0,107560.0,1.14155507]
[1749481174277,0.43021894,107580.0,107570.0,0.1858377]
[1749481174476,0.00253894,107580.0,107570.0,0.9887339]
[1749481174679,0.43061894,107580.0,107570.0,0.9887339]
[1749481174971,0.43061894,107580.0,107570.0,1.08170094]
[1749481175172,0.43069473,107580.0,107570.0,1.08170094]
[1749481175881,0.43569473,107580.0,107570.0,1.08170094]
[1749481177276,0.5473804,107580.0,107570.0,1.08170094]
[1749481177484,0.7332008,107580.0,107570.0,1.08170094]
[1749481177777,0.7332008,107580.0,107570.0,0.89140474]
[1749481177975,0.7332008,107580.0,107570.0,0.53356704]
[1749481178281,1.175297,107580.0,107570.0,0.71940474]
[1749481178483,0.9850008,107580.0,107570.0,0.71940474]
[1749481180378,0.9460008,107580.0,107570.0,0.71940474]
[1749481181078,1.136297,107580.0,107570.0,0.27880474]
[1749481181478,1.136297,107580.0,107570.0,0.09296704]
[1749481181680,1.136297,107580.0,107570.0,0.27880474]
[1749481182786,1.136297,107580.0,107570.0,0.47880474]
[1749481183687,1.136297,107580.0,107570.0,0.29296704]
[1749481184279,0.9460008,107580.0,107570.0,0.47880454]
[1749481184485,0.98835642,107580.0,107570.0,0.47880454]
[1749481185691,0.98835642,107580.0,107570.0,0.83960454]
[1749481185884,0.59713748,107580.0,107570.0,0.83960454]
[1749481186090,1.12469748,107580.0,107570.0,0.83960454]
[1749481186482,1.12429748,107580.0,107570.0,0.83960454]
[1749481186682,1.12469748,107580.0,107570.0,0.83960454]
[1749481187091,1.08234186,107580.0,107570.0,0.83960454]
[1749481187391,0.55438186,107580.0,107570.0,0.83960454]
[1749481187578,1.04330186,107580.0,107570.0,0.83960454]
[1749481187893,0.60528146,107580.0,107570.0,1.20300074]
[1749481188191,0.60568146,107580.0,107570.0,1.20300074]
[1749481188489,0.07826025,107580.0,107570.0,1.20300074]
[1749481188689,0.60578025,107580.0,107570.0,1.20300074]
[1749481188892,0.60538025,107580.0,107570.0,1.20300074]
[1749481189091,0.60578025,107580.0,107570.0,1.20300074]
[1749481189495,0.79160045,107580.0,107570.0,1.20300074]
[1749481190086,0.79160045,107580.0,107570.0,1.20705734]
[1749481191294,0.26408045,107580.0,107570.0,1.20705734]
[1749481191488,0.79156045,107580.0,107570.0,1.20705734]
[1749481191992,0.79116045,107580.0,107570.0,1.20705734]
[1749481192293,0.79156045,107580.0,107570.0,1.20705734]
[1749481194688,0.75256045,107580.0,107570.0,1.20705734]
[1749481195892,0.82797393,107580.0,107570.0,1.20705734]
[1749481198593,0.64215373,107580.0,107570.0,1.20705734]
[1749481198796,0.82797393,107580.0,107570.0,1.20705734]
[1749481200297,0.64215373,107580.0,107570.0,1.20705734]
[1749481200497,0.07591227,107580.0,107570.0,1.20705734]
[1749481200699,0.18594184,107590.0,107580.0,0.1858202]
[1749481200996,0.71334184,107590.0,107580.0,0.5466202]
[1749481201196,0.88134184,107590.0,107580.0,0.5466202]
[1749481201399,0.88134184,107590.0,107580.0,0.63956996]
[1749481201698,0.88493202,107590.0,107580.0,0.82986616]
[1749481201996,0.84640865,107590.0,107580.0,0.82986616]
[1749481202196,0.84840865,107590.0,107580.0,0.91526616]
[1749481202399,0.84840865,107590.0,107580.0,0.99686616]
[1749481203292,0.88074762,107590.0,107580.0,0.99686616]
[1749481204400,0.95584162,107590.0,107580.0,0.99686616]
[1749481205201,0.95584162,107590.0,107580.0,0.91526616]
[1749481205399,1.54949917,107590.0,107580.0,0.28282656]
[1749481205601,1.35920297,107590.0,107580.0,0.28282656]
[1749481205803,1.54949917,107590.0,107580.0,0.09700636]
[1749481206396,1.63471677,107590.0,107580.0,0.09700636]
[1749481207397,1.63471677,107590.0,107580.0,0.09294976]
[1749481207802,1.67824511,107590.0,107580.0,0.09294976]
[1749481208404,1.67824511,107590.0,107580.0,0.09700636]
[1749481209496,1.63924511,107590.0,107580.0,0.09700636]
[1749481209694,1.55564511,107590.0,107580.0,0.09700636]
[1749481209894,1.73637172,107590.0,107580.0,0.09700636]
[1749481210104,1.75091042,107590.0,107580.0,0.09700636]
[1749481210308,1.79435865,107590.0,107580.0,0.09700636]
[1749481210610,1.20896415,107590.0,107580.0,0.09700636]
[1749481210814,1.73628415,107590.0,107580.0,0.09700636]
[1749481211505,1.73584415,107590.0,107580.0,0.09700636]
[1749481211808,1.73624415,107590.0,107580.0,0.09700636]
[1749481212000,0.56451595,107590.0,107580.0,0.28282656]
[1749481212201,1.04834772,107590.0,107580.0,0.09700636]
[1749481212410,1.40914772,107590.0,107580.0,0.09700636]
[1749481212608,1.40914772,107590.0,107580.0,0.29700636]
[1749481212802,1.40954772,107590.0,107580.0,0.29700636]
[1749481213003,1.40906772,107590.0,107580.0,0.29700636]
[1749481213197,1.40946772,107590.0,107580.0,0.29700636]
[1749481213408,0.52146772,107590.0,107580.0,0.48282656]
[1749481213598,0.64109978,107590.0,107580.0,1.03392276]
[1749481213901,0.64069978,107590.0,107580.0,1.29572276]
[1749481214101,0.11389978,107590.0,107580.0,1.29572276]
[1749481214295,0.64105978,107590.0,107580.0,1.29572276]
[1749481214496,0.64065978,107590.0,107580.0,1.29572276]
[1749481214700,0.64105978,107590.0,107580.0,1.29572276]
[1749481215204,0.63705978,107590.0,107580.0,1.29572276]
[1749481215407,0.63905978,107590.0,107580.0,1.29572276]
[1749481215597,0.63705978,107590.0,107580.0,1.29572276]
[1749481216108,0.82286268,107590.0,107580.0,1.29572276]
[1749481216405,0.82286268,107590.0,107580.0,1.29672276]
[1749481216597,0.78386268,107590.0,107580.0,1.29672276]
[1749481216799,0.78382268,107590.0,107580.0,1.10642656]
[1749481217107,1.03332268,107590.0,107580.0,1.01942656]
[1749481217502,1.06630684,107590.0,107580.0,1.20972276]
[1749481218097,0.10188394,107590.0,107580.0,1.20972276]
[1749481218301,0.81480664,107590.0,107580.0,1.20972276]
[1749481218605,0.38760664,107590.0,107580.0,1.20972276]
[1749481218797,0.81480664,107590.0,107580.0,1.20972276]
[1749481218999,0.81440664,107590.0,107580.0,1.20972276]
[1749481219199,0.81480664,107590.0,107580.0,1.20972276]
[1749481220213,0.28768664,107590.0,107580.0,1.20972276]
[1749481220508,0.81476664,107590.0,107580.0,1.20972276]
[1749481220904,0.28768664,107590.0,107580.0,1.20972276]
[1749481221210,0.81476664,107590.0,107580.0,1.20972276]
[1749481222315,0.81472664,107590.0,107580.0,1.20972276]
[1749481223703,0.77572664,107590.0,107580.0,1.20972276]
[1749481226223,0.16280394,107590.0,107580.0,1.20972276]
[1749481226417,0.06288394,107590.0,107580.0,1.20972276]
[1749481226614,0.48996394,107590.0,107580.0,1.20972276]
[1749481227512,0.67576664,107590.0,107580.0,1.20972276]
[1749481228601,0.24868664,107590.0,107580.0,1.20972276]
[1749481228810,0.28580564,107600.0,107580.0,1.16325886]
[1749481229113,0.37909944,107600.0,107590.0,0.9778989]
[1749481229309,0.80617944,107600.0,107590.0,0.9778989]
[1749481229515,0.80617944,107600.0,107590.0,0.7880027]
[1749481229810,0.88977651,107600.0,107590.0,0.44354814]
[1749481230010,1.04777651,107600.0,107590.0,0.44354814]
[1749481230320,1.23807271,107600.0,107590.0,0.36414814]
[1749481230515,1.04777651,107600.0,107590.0,0.36414814]
[1749481231115,1.04877651,107600.0,107590.0,0.36414814]
[1749481231524,1.12198356,107600.0,107590.0,0.36414814]
[1749481231718,1.15432602,107600.0,107590.0,0.36414814]
[1749481232415,1.34462222,107600.0,107590.0,0.27914814]
[1749481232719,1.36875842,107600.0,107590.0,0.09334544]
[1749481232913,2.28286483,107600.0,107590.0,0.09334544]
[1749481233217,2.03286483,107600.0,107590.0,0.09334544]
[1749481233407,3.53286483,107600.0,107590.0,0.09334544]
[1749481236019,3.53286483,107600.0,107590.0,0.09740204]
[1749481237014,2.62535243,107600.0,107590.0,0.09740204]
[1749481237221,0.39292793,107600.0,107590.0,0.47350094]
[1749481237518,0.10678552,107600.0,107590.0,0.79960474]
[1749481237716,0.59510552,107600.0,107590.0,0.98990094]
[1749481238019,0.55926246,107600.0,107590.0,0.98990094]
[1749481238317,0.74544786,107600.0,107590.0,0.98990094]
[1749481238519,0.74544786,107600.0,107590.0,0.79960474]
[1749481238716,0.74554467,107600.0,107590.0,0.79960474]
[1749481239422,0.55975927,107600.0,107590.0,0.79960474]
[1749481239721,0.63341128,107600.0,107590.0,0.98990094]
[1749481240320,0.63337128,107600.0,107590.0,0.98990094]
[1749481242220,0.81915668,107600.0,107590.0,0.98990094]
[1749481242423,0.81915668,107600.0,107590.0,0.61380204]
[1749481242624,1.16755288,107600.0,107590.0,0.84400474]
[1749481243425,0.97725668,107600.0,107590.0,0.84400474]
[1749481243820,0.97725668,107600.0,107590.0,0.29740204]
[1749481244628,1.16755288,107600.0,107590.0,0.29740204]
[1749481244929,1.12855288,107600.0,107590.0,0.29740204]
[1749481245120,1.12855288,107600.0,107590.0,0.29700204]
[1749481245928,1.12865541,107600.0,107590.0,0.29700204]
[1749481246220,1.12853541,107600.0,107590.0,0.48280474]
[1749481246422,1.17588645,107600.0,107590.0,0.48280474]
[1749481246921,0.64912645,107600.0,107590.0,0.29700204]
[1749481247130,0.64912645,107600.0,107590.0,0.84360474]
[1749481247426,0.98559025,107600.0,107590.0,0.29700204]
[1749481247829,1.17588645,107600.0,107590.0,0.29700204]
[1749481248430,1.17588645,107600.0,107590.0,0.48280474]
[1749481249133,0.64912645,107600.0,107590.0,0.48280474]
[1749481249329,1.17588645,107600.0,107590.0,0.48280474]
[1749481249528,0.1858372,107570.0,107560.0,0.00022602]
[1749481249828,0.1858718,107550.0,107540.0,0.4389]
[1749481250030,0.7126318,107550.0,107540.0,0.0781]
[1749481250226,2.7328318,107550.0,107540.0,0.0781]
[1749481250432,0.1858891,107540.0,107530.0,0.1643]
[1749481250730,0.34536464,107540.0,107530.0,0.2698063]
[1749481250935,0.33836464,107540.0,107530.0,0.17688433]
[1749481251236,0.38514384,107540.0,107530.0,0.27889073]
[1749481251437,0.46494384,107540.0,107530.0,0.09298433]
[1749481251830,0.42594384,107540.0,107530.0,0.09298433]
[1749481252031,0.49690502,107540.0,107530.0,0.09298433]
[1749481252430,0.25770502,107540.0,107530.0,0.09298433]
[1749481252631,0.04685474,107540.0,107530.0,0.99262933]
[1749481252931,7.554e-05,107540.0,107530.0,0.99562933]
[1749481253240,0.00013894,107550.0,107540.0,0.1858891]
[1749481253431,0.52693894,107550.0,107540.0,0.9825277]
[1749481253631,0.00013894,107550.0,107540.0,0.9825277]
[1749481253937,0.00013894,107550.0,107540.0,1.07552067]
[1749481254132,0.2323119,107570.0,107560.0,0.1858545]
[1749481254327,0.75921816,107570.0,107560.0,0.7419931]
[1749481254541,0.23241816,107570.0,107560.0,0.9824931]
[1749481254841,0.75921816,107570.0,107560.0,1.07547743]
[1749481255042,0.75921816,107570.0,107560.0,0.88013883]
[1749481256435,0.76321816,107570.0,107560.0,0.88013883]
[1749481256838,0.76821816,107570.0,107560.0,0.88113883]
[1749481257041,0.76621816,107570.0,107560.0,0.88113883]
[1749481257741,0.81291212,107570.0,107560.0,0.88113883]
[1749481258641,0.80991212,107570.0,107560.0,0.88013883]
[1749481258943,0.76345222,107570.0,107560.0,0.88013883]
[1749481259148,0.80991512,107570.0,107560.0,0.88013883]
[1749481259844,1.36605372,107570.0,107560.0,0.09298433]
[1749481260033,1.52245372,107570.0,107560.0,0.09298433]
[1749481260435,2.82711512,107570.0,107560.0,0.09298433]
[1749481261750,3.11542172,107570.0,107560.0,0.09298433]
[1749481262849,3.40768126,107570.0,107560.0,0.09298433]
[1749481263640,3.42646234,107570.0,107560.0,0.09298433]
[1749481264349,3.42646234,107570.0,107560.0,0.09704093]